Workbook

Sheet Expenses
A1: Event Budget for [Event Name]
A2: Expenses
F3: Estimated | G3: Actual
A4: Total Expenses | F4: =SUM(B11,B19,B25,B32,F11,F19,F24) -> $700.00 | G4: =SUM(C11,C19,C25,C32,G11,G19,G24) -> $300.00
A6: Site | B6: Estimated | C6: Actual | E6: Refreshments | F6: Estimated | G6: Actual
A7: Room and hall fees | B7: $500.00 | E7: Food
A8: Site staff | E8: Drinks
A9: Equipment | E9: Linens
A10: Tables and chairs | E10: Staff and gratuities
A11: Total | B11: =SUBTOTAL(109,[Estimated]) -> $500.00 | C11: =SUBTOTAL(103,[Actual]) -> $0.00 | E11: Total | F11: =SUBTOTAL(109,[Estimated]) -> $0.00 | G11: =SUBTOTAL(103,[Actual]) -> $0.00
A13: Decorations | B13: Estimated | C13: Actual | E13: Program | F13: Estimated | G13: Actual
A14: Flowers | B14: $200.00 | C14: $300.00 | E14: Performers
A15: Candles | E15: Speakers
A16: Lighting | E16: Travel
A17: Balloons | E17: Hotel
A18: Paper supplies | E18: Other
A19: Total | B19: =SUBTOTAL(109,[Estimated]) -> $200.00 | C19: =SUBTOTAL(109,[Actual]) -> $300.00 | E19: Total | F19: =SUBTOTAL(109,[Estimated]) -> $0.00 | G19: =SUBTOTAL(103,[Actual]) -> $0.00
A21: Publicity | B21: Estimated | C21: Actual | E21: Prizes | F21: Estimated | G21: Actual
A22: Graphics work | E22: Ribbons/Plaques/Trophies
A23: Photocopying/Printing | E23: Gifts
A24: Postage | E24: Total | F24: =SUBTOTAL(109,[Estimated]) -> $0.00 | G24: =SUBTOTAL(103,[Actual]) -> $0.00
A25: Total | B25: =SUBTOTAL(109,[Estimated]) -> $0.00 | C25: =SUBTOTAL(103,[Actual]) -> $0.00
A27: Miscellaneous | B27: Estimated | C27: Actual
A28: Telephone
A29: Transportation
A30: Stationery supplies
A31: Fax services
A32: Total | B32: =SUBTOTAL(109,[Estimated]) -> $0.00 | C32: =SUBTOTAL(103,[Actual]) -> $0.00

Sheet Income
A1: Event Budget for [Event Name]
A2: Income
E3: Estimated | F3: Actual
A4: Total income | E4: =SUM(E11,E18,E25,E33) -> $1,936.00 | F4: =SUM(F11,F18,F25,F33) -> $1,831.00
A6: Admissions
A7: Estimated No. | B7: Actual No. | C7: Type | D7: Price | E7: Estimated Income | F7: Actual Income
A8: 300 | B8: 278 | C8: Adults @ | D8: $5.00 | E8: =A8*D8 -> $1,500.00 | F8: =B8*D8 -> $1,390.00
A9: 197 | B9: 195 | C9: Children @ | D9: $2.00 | E9: =A9*D9 -> $394.00 | F9: =B9*D9 -> $390.00
A10: 42 | B10: 51 | C10: Other @ | D10: $1.00 | E10: =A10*D10 -> $42.00 | F10: =B10*D10 -> $51.00
A11: Total | E11: =SUBTOTAL(109,[Estimated Income]) -> $1,936.00 | F11: =SUBTOTAL(109,[Actual Income]) -> $1,831.00
A13: Ads in program
A14: Estimated No. | B14: Actual No. | C14: Type | D14: Price | E14: Estimated Income | F14: Actual Income
C15: Covers @ | E15: =A15*D15 -> $0.00 | F15: =B15*D15 -> $0.00
C16: Half-pages @ | E16: =A16*D16 -> $0.00 | F16: =B16*D16 -> $0.00
C17: Quarter-pages @ | E17: =A17*D17 -> $0.00 | F17: =B17*D17 -> $0.00
A18: Total | E18: =SUBTOTAL(109,[Estimated Income]) -> $0.00 | F18: =SUBTOTAL(109,[Actual Income]) -> $0.00
A20: Exhibitors/vendors
A21: Estimated No. | B21: Actual No. | C21: Type | D21: Price | E21: Estimated Income | F21: Actual Income
C22: Large booths @ | E22: =A22*D22 -> $0.00 | F22: =B22*D22 -> $0.00
C23: Med. booths @ | E23: =A23*D23 -> $0.00 | F23: =B23*D23 -> $0.00
C24: Small booths @ | E24: =A24*D24 -> $0.00 | F24: =B24*D24 -> $0.00
A25: Total | E25: =SUBTOTAL(109,[Estimated Income]) -> $0.00 | F25: =SUBTOTAL(109,[Actual Income]) -> $0.00
A27: Sale of items
A28: Estimated No. | B28: Actual No. | C28: Type | D28: Price | E28: Estimated Income | F28: Actual Income
C29: Items @ | E29: =A29*D29 -> $0.00 | F29: =B29*D29 -> $0.00
C30: Items @ | E30: =A30*D30 -> $0.00 | F30: =B30*D30 -> $0.00
C31: Items @ | E31: =A31*D31 -> $0.00 | F31: =B31*D31 -> $0.00
C32: Items @ | E32: =A32*D32 -> $0.00 | F32: =B32*D32 -> $0.00
A33: Total | E33: =SUBTOTAL(109,[Estimated Income]) -> $0.00 | F33: =SUBTOTAL(109,[Actual Income]) -> $0.00

Sheet Profit - Loss Summary
A1: Event Budget for [Event Name]
A2: Profit - Loss Summary
B5: Estimated | C5: Actual
A6: Total income | B6: =Income!E4 -> $1,936.00 | C6: =Income!F4 -> $1,831.00
A7: Total expenses | B7: =Expenses!F4 -> $700.00 | C7: =Expenses!G4 -> $300.00
A9: Total profit (or loss) | B9: =B6-B7 -> $1,236.00 | C9: =C6-C7 -> $1,531.00
